bitfinex/quotes_ETHUSD_20240715
["timestamp","ask_amount","ask_price","bid_price","bid_amount"]
[1721081811559,2.4596,3453.8,3451.9,3.0]
[1721081811560,0.30289393,3452.7,3452.6,5.79272]
[1721081812084,0.17037345,3453.3,3453.2,2.89586]
[1721081812265,2.4596,3453.8,3453.2,2.89586]
[1721081812266,0.17037345,3453.6,3453.3,2.89572]
[1721081812464,0.17037345,3453.6,3452.5,0.0579156]
[1721081812465,0.17037345,3453.6,3453.5,2.89561]
[1721081813103,0.30280688,3453.8,3453.7,2.89544]
[1721081813710,0.30280688,3453.8,3453.7,5.79088]
[1721081813871,0.17037345,3453.6,3453.5,2.89557]
[1721081814398,0.17037345,3453.6,3453.4,2.89566]
[1721081814969,0.17037345,3452.8,3452.7,2.89626]
[1721081815158,0.17037345,3452.8,3452.6,2.89628]
[1721081815402,0.17037345,3452.8,3452.6,2.89632]
[1721081815707,0.17037345,3452.4,3451.2,2.4038]
[1721081816964,0.17037345,3452.1,3452.0,2.89686]
[1721081817162,0.17037345,3452.1,3452.0,5.89686]
[1721081817363,0.17037345,3452.1,3451.8,2.897]
[1721081817560,0.17037345,3451.9,3451.3,0.530134]
[1721081817760,0.17037345,3451.9,3451.8,2.89703]
[1721081819106,0.17037345,3451.7,3451.3,3.0]
[1721081819258,0.17037345,3451.7,3451.5,2.89723]
[1721081819461,0.17037345,3451.7,3451.6,3.0]
[1721081819967,0.17037345,3451.7,3451.6,6.776668]
[1721081820367,0.17037345,3451.7,3451.6,5.8972]
[1721081820564,0.17037345,3451.7,3451.6,8.7944]
[1721081820792,0.17037345,3452.0,3451.9,2.89695]
[1721081820977,0.17037345,3451.7,3451.6,5.89714]
[1721081821187,0.17037345,3452.0,3451.9,2.89695]
[1721081821375,0.17037345,3451.8,3451.7,2.89708]
[1721081821573,2.3379,3452.7,3450.6,2.89803]
[1721081821574,0.17037345,3451.6,3450.6,2.89803]
[1721081821788,0.17037345,3451.6,3451.5,2.89729]
[1721081821990,0.17037345,3451.4,3451.3,2.89745]
[1721081822478,0.17037345,3451.4,3451.2,2.89754]
[1721081822989,0.17037345,3451.1,3451.0,2.8977]
[1721081823401,0.17037345,3451.1,3450.1,2.89842]
[1721081823402,0.17037345,3450.5,3450.1,2.89842]
[1721081823711,0.17037345,3450.5,3450.3,0.34286088]
[1721081823915,0.17037345,3450.7,3450.6,2.89804]
[1721081824901,0.17037345,3450.5,3450.4,2.8982]
[1721081825714,0.17037345,3450.3,3450.2,3.0167414]
[1721081826089,0.17037345,3450.3,3450.2,0.1183714]
[1721081826332,0.17037345,3451.1,3450.8,2.89787]
[1721081826613,0.17037345,3451.1,3451.0,2.89771]
[1721081827217,0.17037345,3451.3,3451.2,2.89754]
[1721081827781,0.17037345,3451.3,3451.2,5.79508]
[1721081828619,0.30224378,3451.6,3451.4,5.79474]
[1721081828620,0.17037345,3451.5,3451.4,5.79474]
[1721081829051,0.17037345,3451.5,3451.4,5.89737]
[1721081829184,0.17037345,3451.5,3451.4,3.0]
[1721081829388,0.30224378,3451.6,3450.2,0.1183714]
[1721081829389,0.17037345,3450.7,3450.2,0.1183714]
[1721081829648,0.17037345,3450.7,3450.6,2.89804]
[1721081829946,0.17037345,3450.7,3450.6,5.89804]
[1721081830228,0.17037345,3450.5,3450.4,2.8982]
[1721081830739,0.17037345,3450.5,3450.2,0.1183714]
[1721081830740,0.17037345,3450.3,3450.2,0.1183714]
[1721081831030,0.17037345,3450.3,3450.2,3.0167514]
[1721081831544,5.29805,3451.2,3450.4,2.89821]
[1721081831545,0.17037345,3450.5,3450.4,2.89821]
[1721081831702,0.17037345,3450.5,3450.4,5.79642]
[1721081832125,0.17037345,3450.5,3450.4,8.79642]
[1721081832323,0.17037345,3450.3,3450.2,0.1183714]
[1721081832537,0.17037345,3450.3,3450.2,3.0167514]
[1721081832745,0.17037345,3450.3,3450.2,0.1183714]
[1721081833648,0.17037345,3450.3,3450.2,5.9151314]
[1721081833864,0.17037345,3450.3,3450.2,6.50664454]
[1721081834154,0.17037345,3450.3,3450.2,3.0167514]
[1721081834365,0.17037345,3450.3,3450.2,0.1183714]
[1721081835902,0.17037345,3450.3,3450.2,3.0167514]
[1721081836103,0.17037345,3450.3,3450.2,0.1183714]
[1721081836333,2.58067345,3450.3,3450.2,0.1183714]
[1721081836540,0.17037345,3450.3,3450.2,0.1183714]
[1721081836865,0.30252349,3450.4,3450.2,0.1183714]
[1721081837007,3.624,3452.3,3450.2,0.1183714]
[1721081837008,0.17037345,3450.7,3450.2,0.1183714]
[1721081837210,0.17037345,3450.7,3450.6,5.79608]
[1721081837710,0.17037345,3450.9,3450.8,5.79574]
[1721081837910,0.17037345,3450.9,3450.8,6.665126]
[1721081838129,0.17037345,3450.9,3450.8,9.665126]
[1721081839519,0.17037345,3450.9,3450.8,8.79574]
[1721081840211,0.17037345,3451.6,3450.8,6.624]
[1721081840439,0.47273831,3451.8,3451.7,5.79424]
[1721081840644,0.17037345,3451.8,3451.7,5.79424]
[1721081841524,0.17037345,3451.6,3451.4,2.8973]
[1721081841728,0.17037345,3451.6,3451.5,5.89729]
[1721081841932,0.17037345,3451.6,3450.9,2.89773]
[1721081841933,0.17037345,3451.0,3450.8,7.4]
[1721081842271,0.17037345,3451.0,3450.9,6.927508]
[1721081842414,0.17037345,3450.8,3450.7,2.89794]
[1721081842614,0.17037345,3451.2,3451.1,2.89762]
[1721081842920,0.17037345,3451.2,3450.9,2.89779]
[1721081842921,0.17037345,3451.2,3451.0,2.89769]
[1721081843228,2.3667,3451.5,3450.5,2.89811]
[1721081843229,0.17037345,3450.6,3450.5,2.89811]
[1721081843557,0.17037345,3450.6,3450.5,5.79626]
[1721081843758,0.17037345,3450.9,3450.8,2.89787]
[1721081844057,0.17037345,3450.7,3450.6,2.89803]
[1721081844419,0.17037345,3450.7,3450.6,2.89804]
[1721081844615,0.17037345,3450.7,3450.3,22.82821]
[1721081844616,0.17037345,3451.0,3450.9,2.89779]
[1721081844816,0.17037345,3451.0,3450.9,5.79558]
[1721081845248,0.17037345,3451.0,3450.9,6.664938]
[1721081845451,0.30244802,3452.0,3450.9,6.664938]
[1721081845452,0.17037345,3451.2,3450.9,6.664938]
[1721081845760,0.30244802,3452.0,3450.9,0.869358]
[1721081845761,0.17037345,3451.5,3450.9,0.869358]
[1721081846047,0.30244802,3452.0,3451.6,5.7944]
[1721081846048,0.17037345,3451.7,3451.6,5.7944]
[1721081846409,0.17037345,3451.7,3451.6,2.8972]
[1721081846616,0.17037345,3451.1,3451.0,30.22771]
[1721081846811,0.30244802,3452.0,3451.2,2.89754]
[1721081846812,0.17037345,3451.5,3451.2,2.89754]
[1721081847032,0.17037345,3451.7,3451.6,2.8972]
[1721081847247,0.17037345,3451.9,3451.6,2.8972]
[1721081847465,0.17037345,3451.9,3451.8,5.79406]
[1721081847813,0.17037345,3451.9,3451.8,8.79406]
[1721081848469,0.17037345,3452.1,3452.0,5.79374]
[1721081850262,0.17037345,3452.1,3452.0,6.962819]
[1721081851065,0.4728053,3452.6,3452.0,4.065949]
[1721081851359,0.17037345,3452.4,3452.3,5.79322]
[1721081851923,0.17037345,3452.4,3452.3,2.89661]
[1721081852162,0.17037345,3452.2,3452.1,2.89678]
[1721081852771,0.17037345,3452.2,3452.1,5.79356]
[1721081852920,0.17037345,3452.4,3452.3,2.89661]
[1721081853122,0.4728053,3452.6,3452.5,2.89645]
[1721081853927,0.4728053,3452.6,3452.5,11.68935]
[1721081853928,0.30243185,3452.6,3452.5,11.68935]
[1721081854061,2.4096,3453.9,3453.5,2.89554]
[1721081854062,0.17037345,3453.6,3453.5,2.89554]
[1721081855590,0.17037345,3453.6,3453.0,19.93]
[1721081855591,0.47302908,3453.8,3453.0,19.93]
[1721081855883,0.47302908,3453.8,3453.7,2.89544]
[1721081856186,0.30265563,3453.8,3453.7,5.79088]
[1721081856472,0.17037345,3453.9,3453.8,5.79072]
[1721081857302,0.17037345,3453.9,3453.8,8.79072]
[1721081858156,0.17037345,3453.9,3453.8,9.959352]
[1721081858485,0.17037345,3453.9,3453.8,8.79072]
[1721081858887,0.17037345,3453.9,3453.8,3.0]
[1721081859195,0.17037345,3453.5,3453.4,5.79138]
[1721081859491,0.17037345,3453.5,3453.4,8.79138]
[1721081859795,0.17037345,3453.8,3453.7,2.89544]
[1721081859948,0.17037345,3453.8,3453.7,5.79088]
[1721081862477,0.30261383,3454.2,3453.7,9.959522]
[1721081862676,0.30261383,3454.2,3454.1,8.68533]
[1721081863011,2.437,3455.1,3454.1,8.68533]
[1721081863012,0.17037345,3455.1,3455.0,5.7887]
[1721081863373,0.17037345,3455.1,3455.0,2.89435]
[1721081863576,0.47304429,3455.1,3455.0,5.7887]
[1721081863777,0.47304429,3455.1,3455.0,2.89435]
[1721081864219,0.47304429,3455.1,3455.0,5.7887]
[1721081865248,0.30267084,3455.1,3455.0,5.7887]
[1721081865727,0.30267084,3455.1,3455.0,6.10344104]
[1721081866028,0.30267084,3455.1,3455.0,8.99779104]
[1721081866495,0.30267084,3455.1,3455.0,11.99779104]
[1721081866695,0.30267084,3455.1,3455.0,11.68305]
[1721081867235,2.4426,3456.4,3455.9,5.78712]
[1721081867236,0.17037345,3456.0,3455.9,5.78712]
[1721081867589,0.30259847,3456.1,3456.0,2.89351]
[1721081868325,0.17037345,3455.8,3455.7,2.89375]
[1721081868534,0.17037345,3455.8,3455.7,5.89375]
[1721081868744,0.30259847,3456.1,3455.9,2.8936]
[1721081868745,0.17037345,3456.0,3455.9,2.8936]
[1721081869308,0.30259847,3456.1,3456.0,2.89351]
[1721081870139,0.30259847,3456.1,3456.0,5.78702]
[1721081870495,0.47297192,3456.1,3456.0,2.89351]
[1721081870836,0.47297192,3456.1,3455.9,2.89358]
[1721081871002,0.30259847,3456.1,3456.0,5.78702]
[1721081871843,0.30259847,3456.1,3456.0,2.89351]
[1721081872003,0.30259847,3456.1,3456.0,5.78702]
[1721081872392,0.30259847,3456.1,3456.0,6.665722]
[1721081872759,0.30259847,3456.1,3456.0,9.665722]
[1721081873139,0.30259847,3456.1,3456.0,5.89351]
[1721081873336,0.30259847,3456.1,3456.0,3.0]
[1721081873648,0.30259847,3456.1,3456.0,2.89351]
[1721081873839,0.30259847,3456.1,3456.0,8.78702]
[1721081874336,0.47297192,3456.1,3456.0,5.89351]
[1721081874836,0.30259847,3456.1,3456.0,8.78702]
[1721081875210,0.30259847,3456.1,3456.0,9.665722]
[1721081876560,0.30259847,3456.1,3456.0,12.559232]
[1721081877112,0.17037345,3456.9,3456.8,2.89284]
[1721081877555,0.17037345,3457.2,3457.1,2.89252]
[1721081878223,0.47285873,3457.2,3456.9,2.8927]
[1721081878409,0.47285873,3457.2,3456.6,2.893]
[1721081878410,0.17037345,3456.8,3456.6,2.893]
[1721081878610,0.17037345,3457.0,3456.8,2.89282]
[1721081878861,0.17037345,3456.7,3456.5,2.89306]
[1721081879064,0.17037345,3456.7,3456.6,2.89301]
[1721081879270,0.17037345,3456.7,3456.4,2.89317]
[1721081879412,0.17037345,3456.6,3456.5,5.89309]
[1721081879923,0.17037345,3457.1,3456.8,2.89284]
[1721081880125,0.17037345,3457.0,3456.5,5.33050303]
[1721081880324,0.17037345,3456.6,3456.5,2.89309]
[1721081880554,0.17037345,3456.8,3456.7,2.89293]
[1721081880761,0.47285873,3457.2,3456.5,3.0]
[1721081880963,0.30248528,3457.2,3457.1,2.89259]
[1721081881111,0.30248528,3457.2,3457.1,5.78518]
[1721081881313,0.30248528,3457.2,3457.1,9.256288]
[1721081881627,0.30248528,3457.2,3457.1,12.256288]
[1721081882221,0.30248528,3457.2,3457.1,5.78518]
[1721081882426,0.30248528,3457.2,3457.1,8.78518]
[1721081882629,0.30248528,3457.2,3457.1,11.67777]
[1721081882874,0.17037345,3458.4,3457.1,5.89259]
[1721081883171,2.89059,3459.5,3458.4,2.89151]
[1721081883172,0.47276902,3458.5,3458.4,2.89151]
[1721081883460,0.47276902,3458.5,3457.7,3.0]
[1721081883461,0.17037345,3457.8,3457.7,3.0]
[1721081883752,0.47276902,3458.5,3458.2,2.89167]
[1721081883911,0.47276902,3458.5,3458.4,2.89151]
[1721081884364,0.17037345,3458.0,3457.7,3.0]
[1721081884585,0.30239557,3458.5,3457.7,3.0]
[1721081884586,0.17037345,3457.8,3457.7,3.0]
[1721081884745,0.30239557,3458.5,3457.0,6.5166]
[1721081884746,0.17037345,3457.6,3457.1,19.93]
[1721081884948,0.17037345,3456.9,3456.7,22.82291]
[1721081885131,0.17037345,3457.1,3457.0,2.89268]
[1721081885334,2.3075,3458.2,3456.5,3.624]
[1721081885335,0.17037345,3457.3,3457.2,2.89251]
[1721081885665,0.17037345,3457.1,3456.5,3.624]
[1721081885972,0.17037345,3456.6,3456.1,19.93]
[1721081886178,0.17037345,3456.8,3456.7,2.89293]
[1721081886361,0.17037345,3456.8,3456.7,5.78586]
[1721081886530,0.17037345,3456.8,3456.7,2.89293]
[1721081886738,0.17037345,3456.6,3456.4,2.8931]
[1721081886939,2.3851,3457.3,3456.4,2.8931]
[1721081886940,0.17037345,3456.8,3456.6,2.89296]
[1721081887652,0.17037345,3456.8,3456.4,2.8931]
[1721081887861,0.17037345,3456.3,3456.1,19.93]
[1721081888055,2.3851,3457.3,3453.3,2.93369834]
[1721081888056,2.3851,3457.3,3455.7,2.89372]
[1721081888241,2.89259,3457.1,3455.9,2.89359]
[1721081888587,3.44268,3457.0,3455.9,2.89359]
[1721081888734,2.89268,3457.0,3455.9,2.89359]
[1721081888929,2.89279,3456.9,3455.9,2.89359]
[1721081889130,2.4449,3456.6,3455.4,7.4]
[1721081889440,3.13765,3456.5,3455.4,7.4]
[1721081889643,3.13765,3456.5,3455.4,10.29393]
[1721081890168,0.24449,3456.5,3455.6,2.89384]
[1721081890369,2.4449,3456.6,3455.8,2.89361]
[1721081890529,2.4449,3456.6,3455.4,7.4]
[1721081890733,2.4449,3456.6,3456.0,2.89345]
[1721081891237,2.4449,3456.6,3455.8,2.89368]
[1721081891430,2.4449,3456.6,3455.6,2.89384]
[1721081891649,2.4449,3456.6,3456.0,2.89343]
[1721081891890,3.78851,3457.2,3455.6,1.329384]
[1721081891891,2.60091,3457.2,3455.6,1.329384]
[1721081892054,2.3624,3457.2,3456.4,2.89311]
[1721081892253,2.3624,3457.2,3456.5,2.89307]
[1721081892487,2.3624,3457.2,3455.8,22.82361]
[1721081892488,2.3624,3457.2,3455.8,19.93]
[1721081892691,0.23624,3457.1,3455.8,19.93]
[1721081892865,2.89285,3456.8,3455.8,19.93]
[1721081893064,2.89317,3456.5,3455.3,2.89408]
[1721081893272,2.89318,3456.4,3455.4,2.89401]
[1721081893591,2.3624,3456.7,3455.5,2.89392]
[1721081893763,2.8931,3456.5,3455.3,2.8941]
[1721081893950,0.525525,3456.6,3455.6,2.89382]
[1721081894351,0.525525,3456.6,3455.4,2.894]
[1721081894352,2.89312,3456.5,3455.4,2.894]
[1721081894556,2.89319,3456.4,3455.1,2.8942]
[1721081894751,2.89346,3456.1,3454.9,2.89443]
[1721081895060,2.89339,3456.2,3455.3,2.89407]
[1721081895379,0.525525,3456.6,3455.7,2.89376]
[1721081895554,2.3624,3456.7,3456.0,2.8935]
[1721081895754,2.3624,3456.7,3455.4,2.89398]
[1721081895989,2.3624,3456.7,3456.0,2.8935]
[1721081896188,0.30237511,3457.0,3456.3,2.89321]
[1721081896589,0.30237511,3457.0,3456.4,2.89316]
[1721081896893,0.30237511,3457.0,3456.2,2.8933]
[1721081897556,0.30237511,3457.0,3456.4,2.89318]
[1721081897756,0.30237511,3457.0,3456.1,2.89342]
[1721081897997,0.30237511,3457.0,3456.2,2.89328]
[1721081898166,0.30237511,3457.0,3455.5,3.0]
[1721081898167,0.30237511,3457.0,3456.3,2.89325]
[1721081898369,0.30237511,3457.0,3456.5,2.89308]
[1721081898696,0.30237511,3457.0,3456.7,2.89291]
[1721081899388,0.30237511,3457.0,3456.8,2.89276]
[1721081899597,0.30237511,3457.0,3456.9,2.89276]
[1721081900404,0.30237511,3457.0,3456.8,2.89283]
[1721081900771,0.30237511,3457.0,3456.3,2.89325]
[1721081901081,0.30237511,3457.0,3456.5,2.89304]
[1721081901283,0.30237511,3457.0,3456.1,7.4]
[1721081901284,2.3624,3456.9,3456.1,7.4]
[1721081901490,2.893,3456.7,3456.1,7.4]
[1721081902396,2.3624,3456.9,3456.1,7.4]
[1721081902601,2.3624,3456.9,3456.1,10.29336]
[1721081903090,2.3624,3456.9,3456.3,2.89326]
[1721081903657,2.3624,3456.9,3456.5,2.89303]
[1721081903894,2.3624,3456.9,3456.3,2.89325]
[1721081904284,2.3624,3456.9,3456.5,2.89307]
[1721081904596,2.3624,3456.9,3456.4,2.89314]
[1721081904776,2.3624,3456.9,3456.5,2.89307]
[1721081905207,2.3624,3456.9,3456.3,2.89326]
[1721081905402,2.3624,3456.9,3456.1,10.29342]
[1721081905403,2.3624,3456.9,3456.1,7.4]
[1721081905623,2.89285,3456.8,3456.1,7.4]
[1721081906092,5.52165751,3456.9,3456.1,7.4]
[1721081906498,0.30237511,3457.0,3456.1,10.29342]
[1721081906814,3.19506511,3457.0,3456.1,10.29342]
[1721081906970,3.19506511,3457.0,3456.1,7.4]
[1721081907481,3.8404559,3456.9,3456.1,7.4]
[1721081907709,0.30237511,3457.0,3456.1,7.4]
[1721081907710,2.89298,3456.7,3456.1,7.4]
[1721081907908,3.72943151,3456.7,3456.1,7.4]
[1721081908210,2.89315,3456.5,3456.1,7.4]
[1721081909309,2.89319,3456.4,3456.1,7.4]
[1721081909515,2.89327,3456.3,3455.7,19.93]
[1721081909693,2.89327,3456.3,3455.3,10.29408]
[1721081910012,2.89327,3456.3,3455.4,5.894]
[1721081910423,2.8931,3456.5,3455.5,2.89392]
[1721081910853,0.3026268,3456.6,3455.6,2.89379]
[1721081911156,0.3026268,3456.6,3455.8,2.89368]
[1721081911344,0.3026268,3456.6,3455.6,3.4103307]
[1721081911345,0.3026268,3456.6,3455.6,0.5165407]
[1721081911531,0.3026268,3456.6,3455.8,2.89367]
[1721081911921,0.3026268,3456.6,3456.0,2.89346]
[1721081912345,0.3026268,3456.6,3456.1,2.89343]
[1721081912563,0.3026268,3456.6,3456.1,0.57871]
[1721081912858,0.3026268,3456.6,3456.0,2.89344]
[1721081913059,0.3026268,3456.6,3456.2,2.89328]
[1721081913215,0.3026268,3456.6,3456.1,3.0]
[1721081913420,0.3026268,3456.6,3456.1,2.89342]
[1721081914084,0.3026268,3456.6,3455.8,2.89362]
[1721081914276,0.3026268,3456.6,3455.7,5.78752]
[1721081914449,0.62218348,3456.6,3455.6,3.0]
[1721081914647,0.62218348,3456.6,3455.7,2.89376]
[1721081914958,0.3026268,3456.6,3456.0,2.89351]
[1721081915340,0.3026268,3456.6,3456.1,2.89342]
[1721081915539,0.3026268,3456.6,3455.6,3.0]
[1721081915848,0.3026268,3456.6,3456.5,5.78618]
[1721081916279,0.3026268,3456.6,3456.5,8.78618]
[1721081916583,0.3026268,3456.6,3456.5,9.954128]
[1721081916788,0.3026268,3456.6,3455.8,27.33]
[1721081917078,2.89311,3456.5,3455.6,2.89377]
[1721081917285,2.89311,3456.5,3455.7,2.89375]
[1721081917573,0.3026268,3456.6,3455.8,2.89368]
[1721081917777,0.3026268,3456.6,3456.0,2.89351]
[1721081917963,0.3026268,3456.6,3456.0,0.578719]
[1721081918148,0.3026268,3456.6,3456.5,2.89309]
[1721081918350,0.3026268,3456.6,3456.5,5.78618]
[1721081919182,0.3026268,3456.6,3456.5,8.67927]
[1721081919482,0.3026268,3456.6,3456.5,11.67927]
[1721081919666,0.3026268,3456.6,3456.5,12.847197]
[1721081921136,0.3026268,3456.6,3456.5,9.954107]
[1721081921336,0.3026268,3456.6,3456.3,2.89325]
[1721081921542,0.3026268,3456.6,3456.5,2.89309]
[1721081921776,0.3026268,3456.6,3456.1,19.93]
[1721081921777,0.3026268,3456.6,3456.2,2.89333]
[1721081921978,0.3026268,3456.6,3456.5,2.89309]
[1721081922186,0.3026268,3456.6,3456.2,2.89327]
[1721081922484,2.8931,3456.5,3455.5,2.89392]
[1721081922783,2.8931,3456.5,3455.6,2.89384]
[1721081922784,0.04424052,3456.2,3455.6,2.89384]
[1721081923139,0.04424052,3456.2,3456.1,2.89343]
[1721081923635,0.3468472,3456.2,3455.9,2.89358]
[1721081924191,0.3468472,3456.2,3456.0,2.89351]
[1721081924544,0.3468472,3456.2,3456.1,2.89343]
[1721081925438,0.3468472,3456.2,3456.1,5.78686]
[1721081926277,0.3468472,3456.2,3456.1,8.78686]
[1721081927180,0.3468472,3456.2,3456.1,11.68029]
[1721081928045,0.30260668,3456.2,3456.1,11.68029]
[1721081928979,0.30260668,3456.2,3456.1,14.57372]
[1721081929205,0.30260668,3456.2,3456.1,16.031092]
[1721081929908,0.30260668,3456.2,3456.1,22.006692]
[1721081930182,3.6589924,3458.0,3457.4,2.89226]
[1721081930386,1.2094924,3457.9,3457.5,2.89223]
[1721081930599,0.30248669,3457.9,3457.8,2.89201]
[1721081931021,0.30248669,3457.9,3457.8,5.78402]
[1721081932656,0.30248669,3457.9,3457.8,6.362422]
[1721081934916,0.30248669,3457.9,3457.8,9.362422]
[1721081935077,1.2094924,3458.9,3457.8,3.578402]
[1721081935286,4.75950953,3459.7,3459.5,2.89055]
[1721081935287,3.84936304,3459.7,3459.5,2.89055]
[1721081935487,3.84936304,3459.7,3459.6,2.8905]
[1721081935488,0.30267064,3459.7,3459.6,2.8905]
[1721081935882,0.30230069,3459.7,3459.6,5.781]
[1721081936229,0.30230069,3459.7,3459.6,9.2496]
[1721081936518,3.6566924,3461.5,3460.5,2.88969]
[1721081936670,0.30247301,3461.4,3460.5,2.88969]
[1721081936868,0.30247301,3461.4,3460.3,2.88991]
[1721081936869,0.30222633,3460.4,3460.3,5.77984]
[1721081937111,0.30247301,3461.4,3460.7,2.88957]
[1721081937416,2.4472,3462.3,3461.1,2.88925]
[1721081937624,0.30217825,3461.3,3461.2,2.88914]
[1721081937765,0.30217825,3461.3,3461.0,2.88931]
[1721081937969,0.80564108,3462.2,3460.3,7.4]
[1721081938226,2.88819,3462.4,3461.4,2.88893]
[1721081938508,2.4472,3462.8,3460.5,3.0]
[1721081938509,0.30213899,3462.1,3460.9,7.4]
[1721081938870,0.30213899,3462.1,3461.3,2.88906]
[1721081939070,0.30213899,3462.1,3461.0,2.8893]
[1721081939309,0.30213899,3462.1,3460.9,7.4]
[1721081939477,0.3190489,3462.0,3460.9,7.4]
[1721081939804,0.3190489,3462.0,3461.2,2.88909]
[1721081939987,0.3190489,3462.0,3461.4,2.88897]
[1721081940322,0.30213899,3462.1,3461.3,2.88906]
[1721081940820,0.30213899,3462.1,3462.0,2.8885]
[1721081941215,0.30213899,3462.1,3462.0,5.777]
[1721081941517,0.30230995,3463.3,3462.8,5.77566]
[1721081941710,2.4472,3464.0,3462.8,5.77566]
[1721081941899,1.5,3465.0,3462.8,8.72123604]
[1721081941900,0.30699184,3462.9,3462.8,8.72123604]
[1721081942227,1.2094924,3465.7,3462.8,8.72123604]
[1721081942228,0.00654614,3465.8,3463.7,8.66124]
[1721081942390,0.00654614,3465.8,3465.3,2.88573]
[1721081942786,0.00654614,3465.8,3464.3,2.355]
[1721081942787,0.30830361,3465.8,3465.7,2.88541]
[1721081943137,0.30830361,3465.8,3465.7,5.77082]
[1721081943335,0.00654614,3465.8,3465.7,5.77082]
[1721081943470,0.00654614,3465.8,3465.7,12.5627257]
[1721081943670,0.00654614,3465.8,3465.7,8.77082]
[1721081943926,0.00654614,3465.8,3465.5,2.88557]
[1721081944415,0.00654614,3465.8,3465.7,2.88541]
[1721081944715,0.00654614,3465.8,3464.5,3.0]
[1721081944716,0.00654614,3465.8,3463.6,2.88716]
[1721081944939,0.00654614,3465.8,3464.6,2.88625]
[1721081945224,0.00654614,3465.8,3465.7,2.88541]
[1721081945437,0.00654614,3465.8,3465.7,5.77082]
[1721081946108,0.00654614,3465.8,3465.7,11.65623]
[1721081946681,0.1683717,3466.7,3466.6,2.88467]
[1721081947221,0.1683717,3466.7,3465.7,4.1745252]
[1721081947222,0.1683717,3466.7,3465.7,3.0]
[1721081947423,0.1683717,3466.7,3466.6,5.76934]
[1721081947595,0.3018766,3467.9,3467.1,5.7685]
[1721081948011,0.60344296,3467.9,3466.3,0.37479636]
[1721081948203,0.30156636,3467.9,3466.7,2.88458]
[1721081948415,0.0183714,3467.2,3466.7,2.88455]
[1721081948618,0.0183714,3467.2,3467.1,2.88425]
[1721081948935,0.0183714,3467.2,3467.1,8.71041263]
[1721081949249,0.0183714,3467.2,3467.1,8.65275]
[1721081949389,0.0183714,3467.2,3467.1,8.7685]
[1721081949951,0.0183714,3467.2,3466.7,0.288455]
[1721081950235,0.0183714,3467.2,3467.1,2.88425]
[1721081950442,0.0183714,3467.2,3467.1,5.7685]
[1721081950608,0.0183714,3467.2,3467.1,5.82616826]
[1721081950790,0.0183714,3467.2,3466.9,2.8844]
[1721081950992,0.0183714,3467.2,3465.5,3.782]
[1721081951232,0.0183714,3467.2,3466.8,2.88442]
[1721081951419,0.0183714,3467.2,3467.1,2.88425]
[1721081952326,0.0183714,3467.2,3466.3,2.88485]
[1721081952623,0.0183714,3467.2,3465.7,2.88538]
[1721081952816,2.88459,3466.7,3465.2,2.88582]
[1721081953047,3.173179,3466.6,3465.2,2.88576]
[1721081953195,3.173179,3466.6,3465.5,2.88556]
[1721081953196,0.288459,3466.6,3465.5,2.88556]
[1721081953393,0.288459,3466.6,3464.8,3.782]
[1721081953626,2.88502,3466.2,3465.0,2.88592]
[1721081953830,2.88512,3466.1,3464.8,6.66816]
[1721081954014,2.88495,3466.3,3464.9,3.552846]
[1721081954191,0.288459,3466.6,3465.0,0.05770435]
[1721081954409,2.4492,3467.0,3465.1,0.05769817]
[1721081954608,2.4492,3467.0,3465.0,0.33436757]
[1721081954866,2.88426,3467.1,3465.9,2.88517]
[1721081955007,2.88426,3467.1,3464.9,0.666816]
[1721081955008,0.0183714,3467.2,3467.1,2.88425]
[1721081955440,0.0183714,3467.2,3467.1,5.7685]
[1721081955845,0.0183714,3467.2,3467.1,2.88425]
[1721081956045,0.0183714,3467.2,3466.3,2.88484]
[1721081956218,0.0183714,3467.2,3467.1,2.88425]
[1721081956407,0.30155235,3468.6,3467.0,2.3378]
[1721081957281,0.30155235,3468.6,3467.1,6.782]
[1721081957558,0.30155235,3468.6,3467.9,5.76716]
[1721081958112,0.30155235,3468.6,3468.5,8.64927]
[1721081958347,1.5512,3470.0,3468.5,4.153254]
[1721081958553,1.5512,3470.0,3468.3,2.88322]
[1721081958842,3.8997,3470.0,3468.4,3.0]
[1721081959158,1.5512,3470.0,3469.9,2.88192]
[1721081959711,1.5512,3470.0,3469.0,3.0]
[1721081959946,1.5512,3470.0,3469.9,8.64576]
[1721081960154,1.5512,3470.0,3469.9,7.006616]
[1721081960314,1.5512,3470.0,3469.9,9.888536]
[1721081960523,1.5512,3470.0,3469.9,10.438536]
[1721081960729,0.1713686,3470.6,3470.5,8.64426]
[1721081960963,0.1713686,3470.6,3470.5,2.88142]
[1721081961277,0.1713686,3470.6,3470.5,5.76284]
[1721081961767,0.1713686,3470.6,3470.5,9.508708]
[1721081962075,0.1713686,3470.6,3470.5,13.058708]
[1721081962228,0.30150616,3471.9,3471.5,2.88059]
[1721081962573,0.30150616,3471.9,3470.5,3.864448]
[1721081962739,2.3485,3471.7,3470.3,2.88152]
[1721081962938,2.3485,3471.7,3469.2,2.98412149]
[1721081962943,2.88163,3470.3,3469.2,0.47432149]
[1721081963158,2.88163,3470.3,3468.0,0.2898]
[1721081963159,3.05,3471.1,3468.1,2.88335]
[1721081963358,3.8485,3471.2,3468.6,3.782]
[1721081963359,2.3485,3471.2,3468.6,3.782]
[1721081963529,2.88167,3470.3,3468.8,2.88276]
[1721081963729,2.88097,3471.1,3469.7,2.88202]
[1721081963730,2.88106,3471.0,3469.7,2.88202]
[1721081963961,2.3485,3471.2,3470.3,2.88155]
[1721081964152,0.27485,3471.5,3470.3,2.88155]
[1721081964153,0.27485,3471.5,3470.6,2.88131]
[1721081964368,0.4,3471.6,3471.0,2.88101]
[1721081964939,0.4,3471.6,3470.8,0.05760562]
[1721081965141,0.4,3471.6,3471.4,2.88065]
[1721081965370,0.4,3471.6,3470.2,2.88166]
[1721081965541,0.4,3471.6,3470.9,2.88107]
[1721081965738,0.4,3471.6,3470.6,2.88127]
[1721081965980,0.4,3471.6,3470.7,2.88125]